bitfinex/quotes_BTCUSD_20250716
["timestamp","ask_amount","ask_price","bid_price","bid_amount"]
[1752654937107,0.07568866,118500.0,118490.0,1.73526204]
[1752654937525,0.07568866,118500.0,118490.0,1.73726204]
[1752654938803,0.07577351,118500.0,118490.0,1.73726204]
[1752654939036,0.07577351,118500.0,118490.0,1.72136204]
[1752654940537,0.07577351,118500.0,118490.0,1.73726204]
[1752654941620,0.07577351,118500.0,118490.0,1.76260004]
[1752654946193,0.06564022,118500.0,118490.0,1.76260004]
[1752654951296,0.06564022,118500.0,118490.0,1.81260004]
[1752654956366,0.05550716,118500.0,118490.0,1.81260004]
[1752654958943,0.05550716,118500.0,118490.0,1.73136004]
[1752654959155,0.05550716,118500.0,118490.0,1.95365988]
[1752654959617,0.5023743,118540.0,118490.0,1.95365988]
[1752654959618,0.0002,118540.0,118530.0,0.20858368]
[1752654959849,0.00233486,118540.0,118530.0,0.75654871]
[1752654960075,0.01833486,118540.0,118530.0,0.75654871]
[1752654960297,0.03433486,118540.0,118530.0,0.78187771]
[1752654961425,0.03433486,118540.0,118530.0,0.78687771]
[1752654962112,0.36778961,118540.0,118530.0,0.32442296]
[1752654962368,0.37082961,118540.0,118530.0,0.45342296]
[1752654962573,0.70428436,118540.0,118530.0,0.45342296]
[1752654962785,0.73802723,118540.0,118530.0,0.43044579]
[1752654963002,0.07111758,118540.0,118530.0,0.41355297]
[1752654963207,0.5072775,118540.0,118530.0,0.41355297]
[1752654963329,0.49884175,118540.0,118530.0,0.41355297]
[1752654963981,0.49884175,118540.0,118530.0,0.42809382]
[1752654964313,0.49040607,118540.0,118530.0,0.42809382]
[1752654964453,0.04581026,118540.0,118530.0,0.42809382]
[1752654964655,0.490406,118540.0,118530.0,0.42809382]
[1752654964855,0.0542458,118540.0,118530.0,0.42809382]
[1752654965079,0.04581026,118540.0,118530.0,0.42809382]
[1752654965277,0.05424573,118540.0,118530.0,0.42809382]
[1752654965492,0.04581026,118540.0,118530.0,0.42809382]
[1752654965889,0.03737486,118540.0,118530.0,0.42809382]
[1752654966400,0.03433486,118540.0,118530.0,0.42809382]
[1752654967260,0.03433486,118540.0,118530.0,0.43016382]
[1752654967677,0.03433486,118540.0,118530.0,0.72436382]
[1752654968260,0.03433486,118540.0,118530.0,0.72736382]
[1752654968492,0.00233486,118540.0,118530.0,0.72736382]
[1752654969137,0.00233486,118540.0,118530.0,0.72758382]
[1752654969773,0.00233486,118540.0,118530.0,0.75291582]
[1752654970074,0.01803486,118540.0,118530.0,0.90420926]
[1752654970271,0.03443486,118540.0,118530.0,0.90420926]
[1752654970904,0.03443486,118540.0,118530.0,0.75291582]
[1752654972475,0.03443486,118540.0,118530.0,0.74969582]
[1752654972667,0.03443486,118540.0,118530.0,0.74762582]
[1752654974098,0.03751486,118540.0,118530.0,0.74762582]
[1752654975834,0.03443486,118540.0,118530.0,0.74762582]
[1752654979740,0.03443486,118540.0,118530.0,0.90090926]
[1752654979982,0.03443486,118540.0,118530.0,0.89891926]
[1752654980772,0.03751486,118540.0,118530.0,0.89891926]
[1752654981359,0.03443486,118540.0,118530.0,0.89891926]
[1752654983950,0.4790306,118540.0,118530.0,0.74461022]
[1752654984188,0.66770144,118540.0,118530.0,0.47582544]
[1752654984426,0.66770144,118540.0,118530.0,0.159292]
[1752654984661,0.66770144,118540.0,118530.0,0.13396]
[1752654985153,0.66770144,118540.0,118530.0,0.12896]
[1752654985574,0.66770144,118540.0,118530.0,0.13196]
[1752654990487,0.66770144,118540.0,118530.0,0.003]
[1752654992180,0.79666144,118540.0,118530.0,0.003]
[1752654999947,0.79670144,118540.0,118530.0,0.003]
[1752655003666,0.79666875,118540.0,118530.0,0.003]
[1752655004886,0.79662875,118540.0,118530.0,0.003]
[1752655012934,0.66766875,118540.0,118530.0,0.003]
[1752655013140,0.79662875,118540.0,118530.0,0.003]
[1752655014375,0.79354875,118540.0,118530.0,0.003]
[1752655014786,0.79677875,118540.0,118530.0,0.003]
[1752655015543,0.79354875,118540.0,118530.0,0.003]
[1752655016105,0.79677875,118540.0,118530.0,0.003]
[1752655016503,0.21999301,118540.0,118530.0,0.18860679]
[1752655016713,0.63248875,118540.0,118530.0,0.19378679]
[1752655016947,0.5213118,118540.0,118530.0,0.19378679]
[1752655017809,0.35897828,118540.0,118530.0,0.22725936]
[1752655018030,0.35897828,118540.0,118530.0,0.37171936]
[1752655018617,0.35897751,118540.0,118530.0,0.37171936]
[1752655018836,0.36741333,118540.0,118530.0,0.37171936]
[1752655019067,0.47009427,118540.0,118530.0,0.39705636]
[1752655019270,0.47853002,118540.0,118530.0,0.39705636]
[1752655020618,0.00025217,118540.0,118530.0,0.41159721]
[1752655020826,0.00025217,118540.0,118530.0,0.94164304]
[1752655021035,0.00025217,118540.0,118530.0,0.49710749]
[1752655021240,0.00025217,118540.0,118530.0,0.94164304]
[1752655021350,0.00025217,118540.0,118530.0,0.95158192]
[1752655022610,0.00025217,118540.0,118530.0,0.94164304]
[1752655023138,0.00025217,118540.0,118530.0,1.08993648]
[1752655023796,0.00025217,118540.0,118530.0,1.09493648]
[1752655024059,0.00025217,118540.0,118530.0,0.49910749]
[1752655024668,0.00025217,118540.0,118530.0,0.94364304]
[1752655025292,0.00025217,118540.0,118530.0,0.49910749]
[1752655027932,0.00025217,118540.0,118530.0,0.94364304]
[1752655028134,0.00025217,118540.0,118530.0,0.49910749]
[1752655028343,0.00025217,118540.0,118530.0,0.94364304]
[1752655029828,0.00025217,118540.0,118530.0,1.23784304]
[1752655031761,0.00025217,118540.0,118530.0,1.38913648]
[1752655032745,0.00025217,118540.0,118530.0,0.79330749]
[1752655032961,0.00025217,118540.0,118530.0,1.23784304]
[1752655033445,0.00025217,118540.0,118530.0,1.38913648]
[1752655035038,0.00025217,118540.0,118530.0,1.23784304]
[1752655035790,0.00025217,118540.0,118530.0,1.38913648]
[1752655039605,0.00025217,118540.0,118530.0,1.72913648]
[1752655042652,0.48725217,118560.0,118550.0,0.20832788]
[1752655042877,0.48725217,118560.0,118550.0,0.45699816]
[1752655043317,0.48725217,118560.0,118550.0,0.48550716]
[1752655044198,0.48725217,118560.0,118550.0,0.48850716]
[1752655044429,0.48725217,118560.0,118550.0,1.22424271]
[1752655044648,0.48725217,118560.0,118550.0,0.78470716]
[1752655044880,0.07819427,118560.0,118550.0,1.06330076]
[1752655045110,0.07819427,118560.0,118550.0,0.49050716]
[1752655045549,0.07819427,118560.0,118550.0,0.93504271]
[1752655046055,0.07819427,118560.0,118550.0,0.49050716]
[1752655046267,0.06975224,118560.0,118550.0,0.48550716]
[1752655046473,0.06975224,118560.0,118550.0,0.93204271]
[1752655046693,0.06131021,118560.0,118550.0,0.48750716]
[1752655046907,0.06131021,118560.0,118550.0,0.93204271]
[1752655047124,0.05286818,118560.0,118550.0,0.93200271]
[1752655047543,0.04442615,118560.0,118550.0,0.93200271]
[1752655047753,0.04442615,118560.0,118550.0,1.32200271]
[1752655047960,0.00636045,118560.0,118550.0,1.32200271]
[1752655048409,0.53083206,118600.0,118590.0,0.2084855]
[1752655048624,0.53083206,118600.0,118590.0,0.46029578]
[1752655048625,0.05221227,118600.0,118590.0,0.46029578]
[1752655048828,0.05221227,118600.0,118590.0,0.33141578]
[1752655049033,0.05221227,118600.0,118590.0,0.42809578]
[1752655049246,0.05221227,118600.0,118590.0,0.45939578]
[1752655049689,0.05221227,118600.0,118590.0,0.48471478]
[1752655049917,0.05221227,118600.0,118590.0,0.49407793]
[1752655050048,0.05221227,118600.0,118590.0,0.48571478]
[1752655050258,0.04377149,118600.0,118590.0,0.48471478]
[1752655050684,0.03533071,118600.0,118590.0,0.93225033]
[1752655051101,0.02688993,118600.0,118590.0,0.93225033]
[1752655051502,0.01844915,118600.0,118590.0,0.93225033]
[1752655051903,0.01000837,118600.0,118590.0,1.27225033]
[1752655052320,0.00156759,118600.0,118590.0,1.27225033]
[1752655052722,0.0002,118610.0,118600.0,0.1939283]
[1752655052855,0.0002,118610.0,118600.0,0.28465858]
[1752655052856,0.00035075,118610.0,118600.0,0.28465858]
[1752655053056,0.00035075,118610.0,118600.0,0.41353858]
[1752655053708,0.00035075,118610.0,118600.0,0.45339643]
[1752655054137,0.00025519,118620.0,118610.0,0.2405528]
[1752655054349,0.34996884,118650.0,118610.0,0.87940652]
[1752655054562,0.00225067,118650.0,118640.0,0.20840376]
[1752655054782,0.00225067,118650.0,118640.0,0.42801404]
[1752655055218,0.00240455,118660.0,118650.0,0.22378743]
[1752655055219,0.00205582,118660.0,118650.0,0.22378743]
[1752655055435,0.00205582,118660.0,118650.0,0.84428648]
[1752655055656,0.02477853,118690.0,118680.0,0.19379758]
[1752655055892,0.02477853,118690.0,118670.0,0.19148957]
[1752655055893,0.02527677,118680.0,118670.0,0.19148957]
[1752655056133,0.45819093,118680.0,118670.0,0.42273252]
[1752655056364,0.01001884,118680.0,118670.0,0.45007752]
[1752655056594,0.66543211,118690.0,118680.0,0.20833878]
[1752655056797,0.68387625,118690.0,118680.0,0.30227465]
[1752655056996,0.67360175,118690.0,118680.0,0.01454085]
[1752655057216,0.67360175,118690.0,118680.0,0.14338085]
[1752655057448,0.49667005,118690.0,118680.0,0.33717892]
[1752655057694,0.65697193,118690.0,118680.0,0.43111486]
[1752655057907,0.49689055,118690.0,118680.0,0.43954045]
[1752655058113,0.01865429,118690.0,118680.0,0.44166996]
[1752655058322,0.65697123,118690.0,118680.0,0.40796746]
[1752655058588,0.65697123,118690.0,118680.0,0.42368899]
[1752655058804,0.03550426,118690.0,118680.0,0.43211451]
[1752655059067,0.21243568,118690.0,118680.0,0.42368899]
[1752655059287,0.00807948,118690.0,118680.0,0.4456001]
[1752655059501,0.01650415,118690.0,118680.0,0.4456001]
[1752655059705,0.04177921,118690.0,118680.0,0.4456001]
[1752655059932,0.03331953,118690.0,118680.0,0.4456001]
[1752655060141,0.0080451,118690.0,118680.0,0.4456001]
[1752655060352,0.46100546,118690.0,118680.0,0.4456001]
[1752655060761,0.46100546,118690.0,118680.0,0.4446001]
[1752655061194,0.46943034,118690.0,118680.0,0.4466001]
[1752655061387,0.46159588,118690.0,118680.0,0.4466001]
[1752655061591,0.63208228,118690.0,118680.0,0.23089113]
[1752655061807,0.66571277,118690.0,118680.0,0.39329668]
[1752655062015,0.65728768,118690.0,118680.0,0.21635028]
[1752655062225,0.65728768,118690.0,118680.0,0.08751028]
[1752655062435,0.65728768,118690.0,118680.0,0.21639028]
[1752655062846,0.21275213,118690.0,118680.0,0.23093113]
[1752655063050,0.65728768,118690.0,118680.0,0.23093113]
[1752655063454,0.65728768,118690.0,118680.0,0.27899753]
[1752655063657,0.64886238,118690.0,118680.0,0.40787753]
[1752655063858,0.20432683,118690.0,118680.0,0.4163034]
[1752655064075,0.63326238,118690.0,118680.0,0.4163034]
[1752655064484,0.63326238,118690.0,118680.0,0.23093113]
[1752655064680,0.61826238,118690.0,118680.0,0.41630347]
[1752655064906,0.61826238,118690.0,118680.0,0.42472934]
[1752655065112,0.61826238,118690.0,118680.0,0.41630347]
[1752655065319,0.61826238,118690.0,118680.0,0.23093113]
[1752655065526,0.61826238,118690.0,118680.0,0.40787753]
[1752655065734,0.61826238,118690.0,118680.0,0.44160647]
[1752655065945,0.61826238,118690.0,118680.0,0.26466014]
[1752655066151,0.65056238,118690.0,118680.0,0.25623413]
[1752655066768,0.64056238,118690.0,118680.0,0.43318053]
[1752655066976,0.64056238,118690.0,118680.0,0.44160647]
[1752655067600,0.62436238,118690.0,118680.0,0.45003234]
[1752655068022,0.62436238,118690.0,118680.0,0.44160647]
[1752655068438,0.62436238,118690.0,118680.0,0.45003234]
[1752655068658,0.4633658,118690.0,118680.0,0.46688338]
[1752655068889,0.64872217,118690.0,118680.0,0.46688352]
[1752655069094,0.64872217,118690.0,118680.0,0.46688345]
[1752655069988,0.20418662,118690.0,118680.0,0.46688345]
[1752655070200,0.47179068,118690.0,118680.0,0.46688345]
[1752655070418,0.48021591,118690.0,118680.0,0.46688345]
[1752655070649,0.00198,118690.0,118680.0,0.46901345]
[1752655070872,0.51141525,118730.0,118680.0,0.46901345]
[1752655070873,0.01684238,118740.0,118730.0,0.02472247]
[1752655071138,0.18527824,118740.0,118730.0,0.10511113]
[1752655071375,0.00967096,118760.0,118740.0,0.02296211]
[1752655071593,0.00642096,118760.0,118750.0,0.24698945]
[1752655071815,0.0081121,118770.0,118760.0,0.20820788]
[1752655072034,0.03337014,118770.0,118760.0,0.01960085]
[1752655072242,0.58396765,118770.0,118760.0,0.20191804]
[1752655072484,0.0131221,118770.0,118760.0,0.03948657]
[1752655072769,0.58905765,118770.0,118760.0,0.23315346]
[1752655072957,0.1395121,118770.0,118760.0,0.23821346]
[1752655073175,0.0081121,118770.0,118760.0,0.23821346]
[1752655073395,0.0081121,118770.0,118760.0,1.18995929]
[1752655073611,0.0081121,118770.0,118760.0,0.69542374]
[1752655074044,0.1396321,118770.0,118760.0,0.69542374]
[1752655074260,0.0081121,118770.0,118760.0,1.13995929]
[1752655074472,1e-08,118770.0,118760.0,1.13995929]
[1752655075128,1e-08,118770.0,118760.0,0.69542374]
[1752655075340,1e-08,118770.0,118760.0,0.74542374]
[1752655075979,1e-08,118780.0,118770.0,0.20819158]
[1752655076219,1e-08,118780.0,118770.0,0.38046186]
[1752655077069,0.00050311,118780.0,118770.0,0.38046186]
[1752655077285,0.00050311,118780.0,118770.0,0.38346186]
[1752655077943,0.00050311,118780.0,118770.0,0.31706186]
[1752655078367,0.13194311,118780.0,118770.0,0.28722101]
[1752655078989,0.13194311,118780.0,118770.0,0.32704186]
[1752655079655,0.13186311,118780.0,118770.0,0.32704186]
[1752655080334,0.00050311,118780.0,118770.0,0.32704186]
[1752655080574,0.13182311,118780.0,118770.0,0.32704186]
[1752655080788,0.00050311,118780.0,118770.0,0.34254186]
[1752655081257,0.00050311,118780.0,118770.0,0.32704186]
[1752655082141,0.13182311,118780.0,118770.0,0.32704186]
[1752655082361,0.00050311,118780.0,118770.0,0.32704186]
[1752655082586,0.00050311,118780.0,118770.0,0.62124186]
[1752655082836,0.00050311,118780.0,118770.0,0.30727338]
[1752655083107,0.63142405,118780.0,118770.0,0.13675076]
[1752655083327,0.71315,118780.0,118770.0,0.02828]
[1752655083784,1.05315,118780.0,118770.0,0.02828]
[1752655083968,1.05315,118780.0,118770.0,0.003]
[1752655084248,5.543066,118780.0,118770.0,0.003]
[1752655084496,5.62857628,118780.0,118770.0,0.003]
[1752655085381,5.76001628,118780.0,118770.0,0.003]
[1752655085603,5.8457759,118780.0,118770.0,0.003]
[1752655085822,0.17685684,118740.0,118730.0,0.17687005]
[1752655086036,0.74356336,118740.0,118730.0,0.27080265]
[1752655086245,0.74356336,118740.0,118730.0,0.025292]
[1752655086484,0.75178336,118740.0,118730.0,0.20216389]
[1752655086717,0.16841923,118760.0,118750.0,0.18526279]
[1752655086718,0.0282903,118760.0,118750.0,0.18526279]
[1752655086947,0.1681105,118760.0,118750.0,0.30215566]
[1752655087179,0.75245665,118760.0,118750.0,0.27689323]
[1752655087400,0.75245665,118760.0,118750.0,0.28531406]
[1752655087617,0.75245665,118760.0,118750.0,0.29373482]
[1752655087805,0.75245665,118760.0,118750.0,0.30215551]
[1752655088306,0.75245665,118760.0,118750.0,0.31057606]
[1752655088307,0.00050279,118760.0,118750.0,0.31057606]
[1752655088511,0.00050279,118760.0,118750.0,0.31350606]
[1752655088729,0.13234279,118760.0,118750.0,0.31350606]
[1752655088955,0.00050279,118760.0,118750.0,0.31350606]
[1752655089618,0.00050279,118760.0,118750.0,0.31850606]
[1752655090048,0.00050279,118760.0,118750.0,0.31350606]
[1752655090520,0.00050279,118760.0,118750.0,0.31550606]
[1752655091839,0.00050279,118760.0,118750.0,0.002]
[1752655091840,0.68965937,118760.0,118750.0,0.002]
[1752655092093,0.70485937,118760.0,118750.0,0.002]
[1752655092755,0.76031638,118760.0,118750.0,0.002]
[1752655092969,0.75189618,118760.0,118750.0,0.01654085]
[1752655093636,0.75189618,118760.0,118750.0,0.19338295]
[1752655093910,0.00050279,118760.0,118750.0,0.29870447]
[1752655094120,0.00050279,118760.0,118750.0,1.28532099]
[1752655094355,0.00050279,118760.0,118750.0,1.31056099]
[1752655094570,0.00050279,118760.0,118750.0,0.87828447]
[1752655094791,0.00050279,118760.0,118750.0,1.45985443]
[1752655094792,1e-08,118760.0,118750.0,1.45985443]
[1752655095219,1e-08,118760.0,118750.0,1.46187409]
[1752655095453,1e-08,118760.0,118750.0,1.45887409]
[1752655095669,1e-08,118760.0,118750.0,1.30758065]
[1752655096079,1e-08,118780.0,118770.0,0.19365073]
[1752655096290,1e-08,118780.0,118770.0,0.41212101]
[1752655096495,1e-08,118780.0,118770.0,0.41509101]
[1752655096739,1e-08,118780.0,118770.0,0.44036901]
[1752655097367,1e-08,118780.0,118770.0,0.45490986]
[1752655098030,1e-08,118780.0,118770.0,0.45193986]
[1752655098260,0.46052223,118780.0,118770.0,0.32397986]
[1752655098463,0.19662422,118780.0,118770.0,0.29260053]
[1752655098669,0.62048239,118780.0,118770.0,0.30102016]
[1752655098878,0.62048239,118780.0,118770.0,0.31556101]
[1752655099087,0.63578239,118780.0,118770.0,0.31556101]
[1752655099319,0.63578239,118780.0,118770.0,0.3239805]
[1752655099762,0.63578239,118780.0,118770.0,0.33239992]
[1752655099968,0.63578239,118780.0,118770.0,0.36651246]
[1752655100179,0.03512736,118780.0,118770.0,0.36651196]
[1752655100383,0.01982693,118780.0,118770.0,0.36651196]
[1752655100592,0.02824564,118780.0,118770.0,0.36651196]
[1752655100809,0.01982693,118780.0,118770.0,0.36651196]
[1752655101015,0.01982693,118780.0,118770.0,0.51560832]
[1752655101253,1e-08,118780.0,118770.0,1.35715484]
[1752655101469,1e-08,118780.0,118770.0,0.87487832]
[1752655101683,1e-08,118780.0,118770.0,1.05543124]
[1752655101900,1e-08,118780.0,118770.0,0.90633488]
[1752655102527,1e-08,118780.0,118770.0,1.00973764]
[1752655103001,1e-08,118780.0,118770.0,1.01173764]
[1752655103247,1e-08,118780.0,118770.0,1.02713764]
[1752655104161,1e-08,118780.0,118770.0,0.83028472]
[1752655105276,1e-08,118780.0,118770.0,1.02713764]
[1752655107796,1e-08,118780.0,118770.0,1.03624793]
[1752655108272,1e-08,118780.0,118770.0,1.02713764]
[1752655108774,1e-08,118780.0,118770.0,1.02912764]
[1752655109752,1e-08,118780.0,118770.0,1.32332764]
[1752655111009,1e-08,118780.0,118770.0,1.41222764]
[1752655111248,1e-08,118780.0,118770.0,1.32332764]
[1752655111466,1e-08,118780.0,118770.0,1.04532764]
[1752655111689,0.0222594,118820.0,118810.0,0.22362637]
[1752655111956,0.0222594,118820.0,118810.0,0.59614855]
[1752655111957,0.02241027,118820.0,118810.0,0.59614855]
[1752655112467,0.02241027,118820.0,118810.0,0.62141655]
[1752655112739,0.02241027,118820.0,118810.0,0.47184465]
[1752655112993,0.02241027,118820.0,118810.0,0.45333465]
[1752655113260,0.02241027,118820.0,118810.0,0.45630465]
[1752655114234,0.02241027,118820.0,118810.0,0.91918117]
[1752655114450,0.02241027,118820.0,118810.0,1.30918117]
[1752655114451,0.013985,118820.0,118810.0,1.30918117]
[1752655114685,0.013985,118820.0,118810.0,0.74446465]
[1752655114898,0.013985,118820.0,118810.0,0.87790465]
[1752655115578,0.013985,118820.0,118810.0,0.86450465]
[1752655115794,0.1388752,118840.0,118830.0,0.2080938]
[1752655116036,0.13803374,118840.0,118830.0,0.5782439]
[1752655116242,0.13803374,118840.0,118830.0,0.60468275]
[1752655116924,0.13803374,118840.0,118830.0,1.48392427]
[1752655117572,0.13803374,118840.0,118830.0,1.4930665]
[1752655117788,0.13795166,118840.0,118830.0,1.4930665]
[1752655118485,0.13795166,118840.0,118830.0,1.34385668]
[1752655118729,0.00136,118850.0,118840.0,1.06205403]
[1752655118987,0.00136,118850.0,118840.0,1.15057431]
[1752655119203,0.00136,118850.0,118840.0,0.71829779]
[1752655120071,0.00136,118850.0,118840.0,0.72029779]
[1752655120281,0.00136,118850.0,118840.0,1.15057431]
[1752655120706,0.00136,118850.0,118840.0,0.70209779]
[1752655121189,0.00136,118850.0,118840.0,0.70418779]
[1752655121411,0.00136,118850.0,118840.0,0.74709055]
[1752655121631,0.00342,118850.0,118840.0,0.5212497]
[1752655121848,0.02866034,118850.0,118840.0,0.5212497]
[1752655122066,0.03142333,118850.0,118840.0,0.53579055]
[1752655122285,0.0398368,118850.0,118840.0,0.53579055]
[1752655122762,0.0232368,118850.0,118840.0,0.40199055]
[1752655122983,0.0232368,118850.0,118840.0,0.53575055]
[1752655123204,0.65303329,118850.0,118840.0,0.36220654]
[1752655123428,0.65303329,118850.0,118840.0,0.37062121]
[1752655123691,0.64461968,118850.0,118840.0,0.37062121]
[1752655123956,0.63620586,118850.0,118840.0,0.38516206]
[1752655124464,0.63620586,118850.0,118840.0,0.39357659]
[1752655124705,0.02117715,118850.0,118840.0,0.43567215]
[1752655125203,0.02117687,118850.0,118840.0,0.43567215]
[1752655125455,0.02959048,118850.0,118840.0,0.43567215]
[1752655125702,0.0380043,118850.0,118840.0,0.72987215]
[1752655125958,0.04641819,118850.0,118840.0,0.43567215]
[1752655126216,0.03800423,118850.0,118840.0,0.43567215]
[1752655126467,0.04006423,118850.0,118840.0,0.43567215]
[1752655126676,0.04847854,118850.0,118840.0,0.43567215]
[1752655127113,0.22374441,118850.0,118840.0,0.42725798]
[1752655127325,0.65602093,118850.0,118840.0,0.4356723]
[1752655127555,0.65602093,118850.0,118840.0,0.44408647]
[1752655127782,0.65602093,118850.0,118840.0,0.4356723]
[1752655128480,0.66443489,118850.0,118840.0,0.44408655]
[1752655128783,0.22374476,118850.0,118840.0,0.4356723]
[1752655128977,0.64760753,118850.0,118840.0,0.4356723]
[1752655129529,0.64760753,118850.0,118840.0,0.44408655]
[1752655129779,0.47932819,118850.0,118840.0,0.44408605]
[1752655130043,0.47091423,118850.0,118840.0,0.44408605]
[1752655130293,0.65469371,118850.0,118840.0,0.10840276]
[1752655130994,0.65469371,118850.0,118840.0,0.12294361]
[1752655131625,0.01818701,118850.0,118840.0,0.39557638]
[1752655131841,0.02024701,118850.0,118840.0,0.40399055]
[1752655132055,0.04715083,118850.0,118840.0,0.40399055]
[1752655132269,0.04715083,118850.0,118840.0,0.40199055]
[1752655132478,0.04715083,118850.0,118840.0,0.40799055]
[1752655132652,0.04715083,118850.0,118840.0,0.43325655]
[1752655132897,0.05556458,118850.0,118840.0,0.43325655]
[1752655133117,0.04715076,118850.0,118840.0,0.43325655]
[1752655133329,0.03873701,118850.0,118840.0,0.43325655]
[1752655133547,0.0303234,118850.0,118840.0,0.43325655]
[1752655133764,0.16372333,118850.0,118840.0,0.43325655]
[1752655133990,0.15531,118850.0,118840.0,0.43325655]
[1752655134229,0.17213687,118850.0,118840.0,0.43325655]
[1752655134442,0.16372333,118850.0,118840.0,0.43325655]
[1752655134651,0.02191,118850.0,118840.0,0.43325655]
[1752655134854,0.17209694,118850.0,118840.0,0.43325655]
[1752655135058,0.0303234,118850.0,118840.0,0.43325655]
[1752655135289,0.60441346,118850.0,118840.0,0.43325655]
[1752655135515,0.47101346,118850.0,118840.0,0.43325655]
[1752655135741,0.17213694,118850.0,118840.0,0.43325655]
[1752655135956,0.03873694,118850.0,118840.0,0.43325655]
[1752655136203,0.17217694,118850.0,118840.0,0.43325655]
[1752655136867,0.19741826,118850.0,118840.0,0.42484238]
[1752655137076,0.19741819,118850.0,118840.0,0.42484238]
[1752655137288,0.78956065,118850.0,118840.0,0.42484238]
[1752655137508,0.80596065,118850.0,118840.0,0.23971989]
[1752655137747,0.7891335,118850.0,118840.0,0.13966876]
[1752655137954,0.6556935,118850.0,118840.0,0.11440276]
[1752655138170,0.7891735,118850.0,118840.0,0.29111093]
[1752655138583,0.78075975,118850.0,118840.0,0.28269626]
[1752655139333,0.64727975,118850.0,118840.0,0.28269626]
[1752655139535,0.78071975,118850.0,118840.0,0.11440276]
[1752655140015,0.86647937,118850.0,118840.0,0.11440276]
[1752655140403,1.21299627,118850.0,118840.0,0.11440276]
[1752655140997,1.55299627,118850.0,118840.0,0.11440276]
[1752655143058,6.04291227,118850.0,118840.0,0.11440276]
[1752655143451,6.12842255,118850.0,118840.0,0.10840276]
[1752655143669,6.15461923,118850.0,118840.0,0.11240276]
[1752655144082,6.24037885,118850.0,118840.0,0.10840276]
[1752655144321,6.24037885,118850.0,118840.0,0.11040276]
[1752655144741,6.24037885,118850.0,118840.0,0.10840276]
[1752655144961,6.24037885,118850.0,118840.0,0.10940276]
[1752655145373,6.02142857,118850.0,118840.0,0.10940276]
[1752655145605,5.61047575,118850.0,118840.0,0.10940276]
[1752655146449,6.04275227,118850.0,118840.0,0.10940276]
[1752655146878,5.90630227,118850.0,118840.0,0.10940276]
[1752655147136,6.03958227,118850.0,118840.0,0.10940276]
[1752655147342,6.12534189,118850.0,118840.0,0.10940276]
[1752655147533,6.03954227,118850.0,118840.0,0.10940276]
[1752655148380,1.54962627,118850.0,118840.0,0.10940276]
[1752655148590,6.03954227,118850.0,118840.0,0.10940276]
[1752655149714,6.12505255,118850.0,118840.0,0.10940276]
[1752655149938,6.21081217,118850.0,118840.0,0.10940276]
[1752655150740,6.21081217,118850.0,118840.0,0.001]
[1752655155845,6.07757217,118850.0,118840.0,0.001]
[1752655156058,6.21057217,118850.0,118840.0,0.001]
[1752655156756,6.07757217,118850.0,118840.0,0.001]
[1752655157024,5.55953603,118850.0,118840.0,0.001]
[1752655157239,0.77026351,118850.0,118840.0,0.001]
[1752655157469,1.20254003,118850.0,118840.0,0.001]
[1752655157699,1.06962003,118850.0,118840.0,0.001]
[1752655157958,1.20254003,118850.0,118840.0,0.001]
[1752655158426,1.09295112,118850.0,118840.0,0.001]
[1752655158639,1.22583112,118850.0,118840.0,0.001]
[1752655159668,1.22579112,118850.0,118840.0,0.001]
[1752655159875,1.22575112,118850.0,118840.0,0.001]
[1752655160083,1.09295112,118850.0,118840.0,0.001]
[1752655160293,1.22575112,118850.0,118840.0,0.001]
[1752655160769,1.65802764,118850.0,118840.0,0.001]
[1752655162988,1.52522764,118850.0,118840.0,0.001]
[1752655163509,1.65810764,118850.0,118840.0,0.001]
[1752655166429,6.17422032,118850.0,118840.0,0.001]
[1752655167994,6.14802364,118850.0,118840.0,0.001]
[1752655169144,0.6174456,118810.0,118800.0,0.00304]
[1752655169360,0.7518156,118810.0,118800.0,0.00319087]
[1752655169982,0.7518156,118810.0,118800.0,0.00531087]
[1752655170439,0.7518156,118810.0,118800.0,0.00015087]
[1752655170657,1.19407522,118810.0,118800.0,0.00015087]
[1752655170882,1.1083156,118810.0,118800.0,0.00015087]
[1752655171105,1.1083156,118810.0,118800.0,0.00415087]
[1752655171780,1.20952588,118810.0,118800.0,0.00415087]
[1752655171939,1.21870133,118810.0,118800.0,0.00415087]
[1752655172162,1.30446095,118810.0,118800.0,0.00415087]
[1752655173136,1.30446095,118810.0,118800.0,0.00402709]
[1752655173359,1.30446095,118810.0,118800.0,2.709e-05]
[1752655173557,1.30755095,118810.0,118800.0,0.00202709]
[1752655173801,1.29185095,118810.0,118800.0,0.00202709]
[1752655174025,1.30685095,118810.0,118800.0,0.00202709]
[1752655174205,1.20589133,118810.0,118800.0,0.00202709]
[1752655174794,0.77361481,118810.0,118800.0,0.00202709]
[1752655175008,1.20589133,118810.0,118800.0,0.00202709]
[1752655176639,1.07341133,118810.0,118800.0,0.00202709]
[1752655176849,1.15917095,118810.0,118800.0,0.00202709]
[1752655177156,1.29161095,118810.0,118800.0,0.00202709]
[1752655179679,1.30761095,118810.0,118800.0,0.00202709]
[1752655179886,0.98481105,118810.0,118800.0,0.00202709]
[1752655180094,1.11717105,118810.0,118800.0,0.00202709]
[1752655182548,0.98481105,118810.0,118800.0,0.00202709]
[1752655182759,1.10063105,118810.0,118800.0,0.00202709]
[1752655184586,0.79828506,118810.0,118800.0,0.17566725]
[1752655184801,0.16666477,118810.0,118800.0,0.23121891]
[1752655185023,0.1851535,118820.0,118810.0,0.22388573]
[1752655185238,0.3433363,118820.0,118810.0,0.22075936]
[1752655185453,0.67492071,118820.0,118810.0,0.22075936]
[1752655185665,0.67492071,118820.0,118810.0,0.22917587]
[1752655185896,0.54268071,118820.0,118810.0,0.22917587]
[1752655186099,0.66576952,118820.0,118810.0,0.22917587]
[1752655186316,0.01683139,118820.0,118810.0,0.23759217]
[1752655186529,0.02572521,118820.0,118810.0,0.3376433]
[1752655186727,0.02572521,118820.0,118810.0,0.3386433]
[1752655186862,0.03414108,118820.0,118810.0,0.3386433]
[1752655187461,0.03414101,118820.0,118810.0,0.3386433]
[1752655187646,0.02572521,118820.0,118810.0,0.3386433]
[1752655187909,0.00841517,118830.0,118820.0,0.16832183]
[1752655188120,0.02524536,118830.0,118820.0,0.22674772]
[1752655188331,0.03366067,118830.0,118820.0,0.22987772]
[1752655188750,0.00841474,118830.0,118820.0,0.22987772]
[1752655188963,0.02524464,118830.0,118820.0,0.22987772]
[1752655190081,0.03365981,118830.0,118820.0,0.36211772]
[1752655190291,0.02524464,118830.0,118820.0,0.36211772]
[1752655190500,0.01682962,118830.0,118820.0,0.36211772]
[1752655191562,0.02524472,118830.0,118820.0,0.36211772]
[1752655191810,0.18512235,118840.0,118830.0,0.22495295]
[1752655192019,0.19353695,118840.0,118830.0,0.21869807]
[1752655192255,0.27929657,118840.0,118830.0,0.22182807]
[1752655192584,0.28771124,118840.0,118830.0,0.23024309]
[1752655192992,0.27929692,118840.0,118830.0,0.21514338]